[Event "Late-Titled-Tuesday-Blitz-February-13-2024"]
[Site "Chess.com"]
[Date "2024.02.13"]
[Round "4"]
[White "AldokhinIvan"]
[Black "semchik73"]
[Result "1-0"]
[WhiteElo "2656"]
[BlackElo "2422"]
[TimeControl "180+1"]
[EndTime "14:40:09 PST"]
[Termination "AldokhinIvan won by checkmate"]

1. e4 {[%clk 0:02:58.2]} 1... Nf6 {[%clk 0:03:00.1]} 2. e5 {[%clk 0:02:58.2]}
2... Nd5 {[%clk 0:03:00.5]} 3. Nc3 {[%clk 0:02:55.7]} 3... e6 {[%clk 0:03:00.5]}
4. Nxd5 {[%clk 0:02:55.5]} 4... exd5 {[%clk 0:03:00.5]} 5. f4 {[%clk 0:02:56.4]}
5... d6 {[%clk 0:03:00.5]} 6. Nf3 {[%clk 0:02:56.7]} 6... dxe5 {[%clk
0:03:00.8]} 7. fxe5 {[%clk 0:02:56.7]} 7... c5 {[%clk 0:03:00.5]} 8. c3 {[%clk
0:02:56.1]} 8... d4 {[%clk 0:02:59.2]} 9. cxd4 {[%clk 0:02:54.9]} 9... cxd4
{[%clk 0:02:59.7]} 10. Qa4+ {[%clk 0:02:54.1]} 10... Nc6 {[%clk 0:02:59.3]} 11.
Bb5 {[%clk 0:02:54.4]} 11... Bd7 {[%clk 0:02:56.3]} 12. O-O {[%clk 0:02:48.9]}
12... Bc5 {[%clk 0:02:54.2]} 13. d3 {[%clk 0:02:45.5]} 13... O-O {[%clk
0:02:51.7]} 14. Qd1 {[%clk 0:02:31.3]} 14... Bg4 {[%clk 0:02:44.4]} 15. Bf4
{[%clk 0:02:24.2]} 15... Qb6 {[%clk 0:02:39.2]} 16. Bxc6 {[%clk 0:02:14.6]}
16... Qxc6 {[%clk 0:02:35.3]} 17. Qe1 {[%clk 0:02:07.5]} 17... Qg6 {[%clk
0:02:24.4]} 18. Qg3 {[%clk 0:01:58]} 18... Bf5 {[%clk 0:02:11.7]} 19. Qxg6
{[%clk 0:01:46.8]} 19... Bxg6 {[%clk 0:02:11.9]} 20. Rad1 {[%clk 0:01:47.3]}
20... h6 {[%clk 0:02:10.6]} 21. Nh4 {[%clk 0:01:45.2]} 21... Bh7 {[%clk
0:02:10.6]} 22. Bg3 {[%clk 0:01:45.9]} 22... Rac8 {[%clk 0:02:04.6]} 23. Nf5
{[%clk 0:01:45.4]} 23... Bxf5 {[%clk 0:01:56.4]} 24. Rxf5 {[%clk 0:01:45.2]}
24... Be7 {[%clk 0:01:56]} 25. Rf2 {[%clk 0:01:43.1]} 25... Bg5 {[%clk
0:01:53.7]} 26. Bf4 {[%clk 0:01:40.3]} 26... Bxf4 {[%clk 0:01:52.4]} 27. Rxf4
{[%clk 0:01:41.2]} 27... Rc2 {[%clk 0:01:52.7]} 28. Rxd4 {[%clk 0:01:38]} 28...
Rxb2 {[%clk 0:01:52.9]} 29. a4 {[%clk 0:01:37.8]} 29... Rc8 {[%clk 0:01:51.3]}
30. Rg4 {[%clk 0:01:34.3]} 30... Rcc2 {[%clk 0:01:38.4]} 31. d4 {[%clk
0:01:33.7]} 31... h5 {[%clk 0:01:27]} 32. Rg5 {[%clk 0:01:33.6]} 32... Rd2
{[%clk 0:01:21.1]} 33. Rc1 {[%clk 0:01:21.8]} 33... g6 {[%clk 0:01:15.9]} 34. e6
{[%clk 0:01:16.5]} 34... fxe6 {[%clk 0:01:05.3]} 35. Rxg6+ {[%clk 0:01:14.8]}
35... Kf7 {[%clk 0:01:05.7]} 36. Rg3 {[%clk 0:01:14.5]} 36... h4 {[%clk
0:01:02.2]} 37. Rg4 {[%clk 0:01:13.9]} 37... h3 {[%clk 0:00:54.1]} 38. gxh3
{[%clk 0:01:12.6]} 38... Rxh2 {[%clk 0:00:53.3]} 39. Rc7+ {[%clk 0:01:05]} 39...
Kf6 {[%clk 0:00:53.2]} 40. Rxb7 {[%clk 0:01:05]} 40... Ra2 {[%clk 0:00:43.1]}
41. Rxa7 {[%clk 0:00:40.8]} 41... Rhb2 {[%clk 0:00:37.9]} 42. Kh1 {[%clk
0:00:37.4]} 42... Rh2+ {[%clk 0:00:29.6]} 43. Kg1 {[%clk 0:00:37.3]} 43... Rhb2
{[%clk 0:00:30.2]} 44. Rf4+ {[%clk 0:00:36.7]} 44... Kg5 {[%clk 0:00:28.3]} 45.
Raf7 {[%clk 0:00:35]} 45... Rb1+ {[%clk 0:00:23.7]} 46. Rf1 {[%clk 0:00:34.3]}
46... Rxf1+ {[%clk 0:00:23.1]} 47. Rxf1 {[%clk 0:00:29.6]} 47... Rxa4 {[%clk
0:00:23.3]} 48. Rd1 {[%clk 0:00:29.7]} 48... Kh4 {[%clk 0:00:22.6]} 49. Kg2
{[%clk 0:00:28.3]} 49... Ra2+ {[%clk 0:00:22.4]} 50. Kf3 {[%clk 0:00:28.6]}
50... Ra3+ {[%clk 0:00:21.6]} 51. Ke4 {[%clk 0:00:21.5]} 51... Rxh3 {[%clk
0:00:21.7]} 52. Re1 {[%clk 0:00:10.4]} 52... Rh2 {[%clk 0:00:15.6]} 53. Ke5
{[%clk 0:00:09.4]} 53... Rd2 {[%clk 0:00:15.8]} 54. Re4+ {[%clk 0:00:09.6]}
54... Kg5 {[%clk 0:00:15.5]} 55. Kxe6 {[%clk 0:00:09.2]} 55... Kg6 {[%clk
0:00:15.4]} 56. d5 {[%clk 0:00:09.2]} 56... Kg7 {[%clk 0:00:13.7]} 57. d6 {[%clk
0:00:09]} 57... Ra2 {[%clk 0:00:12.2]} 58. d7 {[%clk 0:00:08.4]} 58... Ra6+
{[%clk 0:00:12.3]} 59. Ke7 {[%clk 0:00:08]} 59... Ra7 {[%clk 0:00:12.8]} 60. Ke8
{[%clk 0:00:08.1]} 60... Rxd7 {[%clk 0:00:11]} 61. Kxd7 {[%clk 0:00:08.1]} 61...
Kf6 {[%clk 0:00:11.7]} 62. Kd6 {[%clk 0:00:08.3]} 62... Kf5 {[%clk 0:00:12.5]}
63. Kd5 {[%clk 0:00:08.6]} 63... Kf6 {[%clk 0:00:12.7]} 64. Re5 {[%clk
0:00:08.8]} 64... Kf7 {[%clk 0:00:13.2]} 65. Re6 {[%clk 0:00:09]} 65... Kg7
{[%clk 0:00:13.7]} 66. Ke5 {[%clk 0:00:09.4]} 66... Kf7 {[%clk 0:00:14.5]} 67.
Kf5 {[%clk 0:00:09.8]} 67... Kg7 {[%clk 0:00:14.9]} 68. Re4 {[%clk 0:00:10.2]}
68... Kf7 {[%clk 0:00:15.1]} 69. Re5 {[%clk 0:00:10.7]} 69... Kg7 {[%clk
0:00:15.3]} 70. Re3 {[%clk 0:00:05.8]} 70... Kf7 {[%clk 0:00:15.4]} 71. Kg5
{[%clk 0:00:06]} 71... Kg7 {[%clk 0:00:15.5]} 72. Re7+ {[%clk 0:00:06]} 72...
Kf8 {[%clk 0:00:16.2]} 73. Ra7 {[%clk 0:00:05.8]} 73... Ke8 {[%clk 0:00:16.3]}
74. Kf6 {[%clk 0:00:06.2]} 74... Kd8 {[%clk 0:00:16.9]} 75. Ke6 {[%clk
0:00:06.7]} 75... Kc8 {[%clk 0:00:17.4]} 76. Kd6 {[%clk 0:00:07.2]} 76... Kb8
{[%clk 0:00:18.3]} 77. Rf7 {[%clk 0:00:07.1]} 77... Kc8 {[%clk 0:00:18.8]} 78.
Rg7 {[%clk 0:00:07.5]} 78... Kd8 {[%clk 0:00:19.3]} 79. Rg8# {[%clk 0:00:07.6]}
1-0

[Event "Late-Titled-Tuesday-Blitz-February-13-2024"]
[Site "Chess.com"]
[Date "2024.02.13"]
[Round "4"]
[White "IMRosen"]
[Black "Mariia89"]
[Result "1/2-1/2"]
[WhiteElo "2631"]
[BlackElo "2252"]
[TimeControl "180+1"]
[EndTime "14:40:16 PST"]
[Termination "Game drawn by repetition"]

1. d4 {[%clk 0:03:00.9]} 1... Nf6 {[%clk 0:02:59]} 2. Bf4 {[%clk 0:03:00.6]}
2... c5 {[%clk 0:02:59.4]} 3. e3 {[%clk 0:02:55]} 3... cxd4 {[%clk 0:02:59.4]}
4. exd4 {[%clk 0:02:55.3]} 4... d5 {[%clk 0:03:00.3]} 5. Nf3 {[%clk 0:02:53.1]}
5... Bg4 {[%clk 0:02:59]} 6. Nbd2 {[%clk 0:02:50.8]} 6... Nc6 {[%clk 0:02:58.8]}
7. h3 {[%clk 0:02:43.3]} 7... Bh5 {[%clk 0:02:58.5]} 8. Bb5 {[%clk 0:02:39.3]}
8... e6 {[%clk 0:02:53.6]} 9. g4 {[%clk 0:02:39.5]} 9... Bg6 {[%clk 0:02:53.8]}
10. Ne5 {[%clk 0:02:40]} 10... Rc8 {[%clk 0:02:53.1]} 11. Nxc6 {[%clk
0:02:40.2]} 11... bxc6 {[%clk 0:02:53.1]} 12. Ba6 {[%clk 0:02:40.8]} 12... Rb8
{[%clk 0:02:41.1]} 13. Bxb8 {[%clk 0:02:38]} 13... Qxb8 {[%clk 0:02:42]} 14. Bd3
{[%clk 0:02:29.1]} 14... Bd6 {[%clk 0:02:35.5]} 15. Rb1 {[%clk 0:02:07.1]} 15...
Bxd3 {[%clk 0:02:10.3]} 16. cxd3 {[%clk 0:02:07.2]} 16... Qb4 {[%clk 0:02:08.9]}
17. Qc2 {[%clk 0:02:00.6]} 17... O-O {[%clk 0:01:59.5]} 18. Qc3 {[%clk
0:01:49.9]} 18... Qb6 {[%clk 0:01:59.2]} 19. Rc1 {[%clk 0:01:47.4]} 19... Bb4
{[%clk 0:01:56]} 20. Qc2 {[%clk 0:01:16.6]} 20... Qxd4 {[%clk 0:01:52.3]} 21.
O-O {[%clk 0:01:11.3]} 21... Nxg4 {[%clk 0:01:32.2]} 22. Nf3 {[%clk 0:00:41]}
22... Qf4 {[%clk 0:01:14.1]} 23. Kg2 {[%clk 0:00:36.6]} 23... Nh6 {[%clk
0:01:06.3]} 24. Qxc6 {[%clk 0:00:19.3]} 24... Nf5 {[%clk 0:00:59.9]} 25. Qa4
{[%clk 0:00:17.4]} 25... Nh4+ {[%clk 0:00:32.4]} 26. Nxh4 {[%clk 0:00:17.8]}
26... Qxh4 {[%clk 0:00:32.5]} 27. Rg1 {[%clk 0:00:09.4]} 27... Qg5+ {[%clk
0:00:24.3]} 28. Kh1 {[%clk 0:00:08.2]} 28... Qf5 {[%clk 0:00:20.1]} 29. Rg3
{[%clk 0:00:04.4]} 29... Bd6 {[%clk 0:00:17.3]} 30. Qg4 {[%clk 0:00:02.3]} 30...
Bxg3 {[%clk 0:00:15.6]} 31. Qxf5 {[%clk 0:00:02]} 31... exf5 {[%clk 0:00:15.4]}
32. fxg3 {[%clk 0:00:02.7]} 32... Rb8 {[%clk 0:00:09.4]} 33. Kg2 {[%clk
0:00:02.5]} 33... g5 {[%clk 0:00:09.2]} 34. b3 {[%clk 0:00:03]} 34... a5 {[%clk
0:00:09]} 35. Rc5 {[%clk 0:00:03.1]} 35... a4 {[%clk 0:00:09]} 36. Rxd5 {[%clk
0:00:01.5]} 36... axb3 {[%clk 0:00:09.1]} 37. axb3 {[%clk 0:00:01.8]} 37... Rxb3
{[%clk 0:00:08.7]} 38. Kf2 {[%clk 0:00:01.4]} 38... Rb2+ {[%clk 0:00:07.3]} 39.
Ke3 {[%clk 0:00:02]} 39... f4+ {[%clk 0:00:05.6]} 40. gxf4 {[%clk 0:00:02.2]}
40... gxf4+ {[%clk 0:00:05.8]} 41. Kxf4 {[%clk 0:00:03.1]} 41... Rh2 {[%clk
0:00:05.7]} 42. Kg3 {[%clk 0:00:02.9]} 42... Re2 {[%clk 0:00:05]} 43. h4 {[%clk
0:00:02.9]} 43... Kg7 {[%clk 0:00:05.2]} 44. Kf3 {[%clk 0:00:03.2]} 44... Rh2
{[%clk 0:00:04.8]} 45. Kg4 {[%clk 0:00:03.4]} 45... Rg2+ {[%clk 0:00:04.4]} 46.
Kf4 {[%clk 0:00:04]} 46... Rf2+ {[%clk 0:00:04.5]} 47. Kg3 {[%clk 0:00:03.9]}
47... Rf1 {[%clk 0:00:04.6]} 48. h5 {[%clk 0:00:03.6]} 48... Rg1+ {[%clk
0:00:04.7]} 49. Kf4 {[%clk 0:00:03.8]} 49... Rh1 {[%clk 0:00:04.3]} 50. Rg5+
{[%clk 0:00:03.2]} 50... Kf6 {[%clk 0:00:04.4]} 51. Rg2 {[%clk 0:00:03.1]} 51...
Rxh5 {[%clk 0:00:04.2]} 52. Ke4 {[%clk 0:00:03.5]} 52... Rh4+ {[%clk 0:00:04.5]}
53. Kd5 {[%clk 0:00:03.3]} 53... Rh5+ {[%clk 0:00:04.5]} 54. Kd6 {[%clk
0:00:03.6]} 54... Rh4 {[%clk 0:00:03.5]} 55. Rf2+ {[%clk 0:00:03.4]} 55... Kg7
{[%clk 0:00:04]} 56. Ke5 {[%clk 0:00:03.1]} 56... h5 {[%clk 0:00:03.5]} 57. d4
{[%clk 0:00:03.3]} 57... Rh1 {[%clk 0:00:02.9]} 58. d5 {[%clk 0:00:03.6]} 58...
Re1+ {[%clk 0:00:03.3]} 59. Kf5 {[%clk 0:00:02.3]} 59... h4 {[%clk 0:00:02.8]}
60. Rd2 {[%clk 0:00:02.3]} 60... h3 {[%clk 0:00:02.7]} 61. d6 {[%clk 0:00:02.5]}
61... Re8 {[%clk 0:00:02.5]} 62. d7 {[%clk 0:00:02.3]} 62... Rd8 {[%clk
0:00:02.9]} 63. Ke5 {[%clk 0:00:02.5]} 63... Kg6 {[%clk 0:00:02]} 64. Kd6 {[%clk
0:00:02.4]} 64... Kg5 {[%clk 0:00:02.3]} 65. Ke7 {[%clk 0:00:02.6]} 65... Rh8
{[%clk 0:00:02.3]} 66. Rd5+ {[%clk 0:00:02]} 66... Kg4 {[%clk 0:00:02.3]} 67.
Rd4+ {[%clk 0:00:02.6]} 67... Kg3 {[%clk 0:00:02.4]} 68. Rd3+ {[%clk 0:00:03.1]}
68... Kg2 {[%clk 0:00:02.4]} 69. Rd2+ {[%clk 0:00:03.5]} 69... Kg3 {[%clk
0:00:02.8]} 70. Rd3+ {[%clk 0:00:04]} 70... Kg2 {[%clk 0:00:03.1]} 71. Rd2+
{[%clk 0:00:04.4]} 71... Kg3 {[%clk 0:00:03.5]} 72. Kxf7 {[%clk 0:00:04.6]}
72... h2 {[%clk 0:00:03]} 73. Rd3+ {[%clk 0:00:05.2]} 73... Kg2 {[%clk
0:00:03.1]} 74. Rd2+ {[%clk 0:00:05.6]} 74... Kg3 {[%clk 0:00:03.4]} 75. Rd1
{[%clk 0:00:06.2]} 75... Kg2 {[%clk 0:00:02.6]} 76. Rd2+ {[%clk 0:00:05.3]}
76... Kg3 {[%clk 0:00:02.7]} 1/2-1/2

[Event "Late-Titled-Tuesday-Blitz-February-13-2024"]
[Site "Chess.com"]
[Date "2024.02.13"]
[Round "4"]
[White "Rawnsdale"]
[Black "StarkyNZ"]
[Result "1-0"]
[WhiteElo "2531"]
[BlackElo "2350"]
[TimeControl "180+1"]
[EndTime "14:40:29 PST"]
[Termination "Rawnsdale won by resignation"]

1. e4 {[%clk 0:03:00.9]} 1... c6 {[%clk 0:02:59.6]} 2. Nf3 {[%clk 0:03:00.7]}
2... d5 {[%clk 0:02:59.7]} 3. Nc3 {[%clk 0:03:01.6]} 3... dxe4 {[%clk
0:02:59.5]} 4. Nxe4 {[%clk 0:03:02.5]} 4... Nf6 {[%clk 0:03:00.4]} 5. Qe2 {[%clk
0:02:56.3]} 5... e6 {[%clk 0:02:59.2]} 6. d4 {[%clk 0:02:49.9]} 6... Be7 {[%clk
0:02:58.3]} 7. Bd2 {[%clk 0:02:33.2]} 7... Nbd7 {[%clk 0:02:58.3]} 8. O-O-O
{[%clk 0:02:31.9]} 8... Nxe4 {[%clk 0:02:58.3]} 9. Qxe4 {[%clk 0:02:31.8]} 9...
Nf6 {[%clk 0:02:58.7]} 10. Qf4 {[%clk 0:02:30.5]} 10... Qd5 {[%clk 0:02:50.5]}
11. Kb1 {[%clk 0:02:24.8]} 11... Qe4 {[%clk 0:02:46.7]} 12. Bd3 {[%clk
0:02:14.8]} 12... Qxf4 {[%clk 0:02:46.3]} 13. Bxf4 {[%clk 0:02:15.7]} 13... O-O
{[%clk 0:02:46.4]} 14. h4 {[%clk 0:02:10.2]} 14... b6 {[%clk 0:02:39.1]} 15. h5
{[%clk 0:02:10]} 15... Nd5 {[%clk 0:02:32.2]} 16. Bd2 {[%clk 0:02:08]} 16... Bb7
{[%clk 0:02:27]} 17. h6 {[%clk 0:01:58.9]} 17... g6 {[%clk 0:02:26.8]} 18. a3
{[%clk 0:01:52.7]} 18... c5 {[%clk 0:02:20.2]} 19. dxc5 {[%clk 0:01:27.7]} 19...
Bxc5 {[%clk 0:02:19.1]} 20. c4 {[%clk 0:01:23.4]} 20... Ne7 {[%clk 0:02:14.4]}
21. Bc3 {[%clk 0:01:07.4]} 21... Rfd8 {[%clk 0:01:58.7]} 22. Ne5 {[%clk
0:00:58.2]} 22... Bd4 {[%clk 0:01:41]} 23. Bxd4 {[%clk 0:00:44.9]} 23... Rxd4
{[%clk 0:01:41.9]} 24. f3 {[%clk 0:00:44.6]} 24... Rad8 {[%clk 0:01:32.4]} 25.
Kc2 {[%clk 0:00:40]} 25... f6 {[%clk 0:01:31.3]} 26. Ng4 {[%clk 0:00:38.8]}
26... Kf7 {[%clk 0:01:30.9]} 27. Kc3 {[%clk 0:00:30.2]} 27... e5 {[%clk
0:01:30]} 28. Rhe1 {[%clk 0:00:22.4]} 28... Nc6 {[%clk 0:01:22.7]} 29. Kc2
{[%clk 0:00:20.2]} 29... R4d6 {[%clk 0:01:19.8]} 30. Nf2 {[%clk 0:00:18.1]}
30... Nd4+ {[%clk 0:01:19.8]} 31. Kc3 {[%clk 0:00:17.4]} 31... Rc8 {[%clk
0:01:20]} 32. Be4 {[%clk 0:00:17.1]} 32... Ba6 {[%clk 0:01:18.4]} 33. b3 {[%clk
0:00:17.1]} 33... b5 {[%clk 0:01:15.1]} 34. Bd3 {[%clk 0:00:12.2]} 34... bxc4
{[%clk 0:01:14.6]} 35. Bxc4+ {[%clk 0:00:13.1]} 35... Bxc4 {[%clk 0:01:14.4]}
36. bxc4 {[%clk 0:00:14]} 36... Rdc6 {[%clk 0:01:14.2]} 37. Ne4 {[%clk
0:00:12.9]} 37... Rxc4+ {[%clk 0:01:14.2]} 38. Kd3 {[%clk 0:00:13.3]} 38... R4c6
{[%clk 0:01:02.5]} 39. Rb1 {[%clk 0:00:12.9]} 39... R8c7 {[%clk 0:01:00.1]} 40.
Rb8 {[%clk 0:00:12]} 40... Ra6 {[%clk 0:00:51.9]} 41. Ra1 {[%clk 0:00:09.5]}
41... Nc2 {[%clk 0:00:46.6]} 42. Ra2 {[%clk 0:00:09.4]} 42... Nd4 {[%clk
0:00:31.2]} 43. Rh8 {[%clk 0:00:08.6]} 43... Ke6 {[%clk 0:00:29.9]} 44. Re8+
{[%clk 0:00:08.9]} 44... Kf7 {[%clk 0:00:20.6]} 45. Rh8 {[%clk 0:00:09.1]} 45...
Ke6 {[%clk 0:00:21.2]} 46. g4 {[%clk 0:00:09.2]} 46... Rb6 {[%clk 0:00:19.7]}
47. Re8+ {[%clk 0:00:09.1]} 47... Kf7 {[%clk 0:00:19.3]} 48. Rh8 {[%clk
0:00:09.2]} 48... Rb3+ {[%clk 0:00:19.6]} 49. Kd2 {[%clk 0:00:09.6]} 49... Nxf3+
{[%clk 0:00:19.6]} 50. Ke2 {[%clk 0:00:10]} 50... Nd4+ {[%clk 0:00:19.9]} 51.
Kf2 {[%clk 0:00:10.5]} 51... Rf3+ {[%clk 0:00:17.2]} 52. Kg2 {[%clk 0:00:10.6]}
52... Ke6 {[%clk 0:00:17.7]} 53. Rd2 {[%clk 0:00:10.8]} 53... Rcc3 {[%clk
0:00:16.5]} 54. Re8+ {[%clk 0:00:10.5]} 54... Kd7 {[%clk 0:00:16.5]} 55. Rf8
{[%clk 0:00:09.7]} 55... Rcd3 {[%clk 0:00:14.1]} 56. Rxd3 {[%clk 0:00:08.8]}
56... Rxd3 {[%clk 0:00:14.2]} 57. Nxf6+ {[%clk 0:00:09.7]} 57... Ke7 {[%clk
0:00:14]} 58. Nxh7 {[%clk 0:00:10.3]} 58... Rxa3 {[%clk 0:00:12.8]} 59. Ra8
{[%clk 0:00:10]} 59... Ra2+ {[%clk 0:00:13.7]} 60. Kg3 {[%clk 0:00:10.2]} 60...
Ra3+ {[%clk 0:00:13.8]} 61. Kg2 {[%clk 0:00:10.5]} 61... Ra2+ {[%clk 0:00:14.1]}
62. Kh3 {[%clk 0:00:10.9]} 62... Ra1 {[%clk 0:00:13.5]} 63. Ng5 {[%clk
0:00:10.8]} 63... Rh1+ {[%clk 0:00:13]} 64. Kg3 {[%clk 0:00:11.4]} 64... Rxh6
{[%clk 0:00:13.2]} 65. Rxa7+ {[%clk 0:00:12]} 65... Kd6 {[%clk 0:00:13.5]} 66.
Ra6+ {[%clk 0:00:12]} 66... Kc5 {[%clk 0:00:14]} 67. Ne4+ {[%clk 0:00:12.4]}
67... Kb5 {[%clk 0:00:14.1]} 68. Rf6 {[%clk 0:00:11.3]} 68... Kc4 {[%clk
0:00:13.8]} 69. g5 {[%clk 0:00:11.5]} 69... Rh1 {[%clk 0:00:13.9]} 70. Rxg6
{[%clk 0:00:11.4]} 70... Re1 {[%clk 0:00:13.8]} 71. Nd6+ {[%clk 0:00:11.4]}
71... Kd5 {[%clk 0:00:13.8]} 72. Nf7 {[%clk 0:00:11.5]} 72... e4 {[%clk
0:00:14.2]} 73. Rd6+ {[%clk 0:00:11.2]} 73... Kc4 {[%clk 0:00:14.7]} 74. Rd8
{[%clk 0:00:10.8]} 74... Rg1+ {[%clk 0:00:14.8]} 75. Kf2 {[%clk 0:00:11.2]}
75... Ra1 {[%clk 0:00:14.2]} 76. g6 {[%clk 0:00:11.7]} 76... Ra2+ {[%clk
0:00:14.7]} 77. Ke3 {[%clk 0:00:11.6]} 77... Nf5+ {[%clk 0:00:14]} 78. Kxe4
{[%clk 0:00:10.9]} 78... Ng7 {[%clk 0:00:12.8]} 79. Rc8+ {[%clk 0:00:11.2]}
79... Kb5 {[%clk 0:00:12.8]} 80. Ke5 {[%clk 0:00:12.1]} 80... Re2+ {[%clk
0:00:12.2]} 81. Kf6 {[%clk 0:00:12.6]} 81... Nh5+ {[%clk 0:00:12.8]} 82. Kg5
{[%clk 0:00:13.1]} 82... Ng7 {[%clk 0:00:11.5]} 83. Rg8 {[%clk 0:00:13.4]} 83...
Ne6+ {[%clk 0:00:11.9]} 84. Kf6 {[%clk 0:00:13.6]} 84... Kc6 {[%clk 0:00:07.4]}
85. Re8 {[%clk 0:00:13.8]} 85... Kd7 {[%clk 0:00:07.4]} 86. Re7+ {[%clk
0:00:14]} 86... Kc6 {[%clk 0:00:05]} 87. Rxe6+ {[%clk 0:00:14.6]} 87... Rxe6+
{[%clk 0:00:04.2]} 88. Kxe6 {[%clk 0:00:15.5]} 1-0